Cogmind - Beta 14 @@@ ROGUE MODE // 2024.10.20 @ 05:23:43 Player: WazdakkaGutsmek Result: Destroyed by P-80 Master with Gamma Rifle Performance ------------- Evolutions (8) 4000 Regions Visited (25) 5000 Robots Destroyed (246) 1230 Value Destroyed (12008) 12008 Prototype IDs (38) 760 Alien Tech Used (0) 0 Bonus (8980) 8980 TOTAL SCORE: 31978 Bonus ------- Triggered Max Security 1000 High Alert Combat Kills 392 Follower Combat Kills 956 Entered Garrisons 1000 Used RIF Installer 3500 Aligned with FarCom 300 Acquired SGEMP 2000 Friendly Fire -168 Cogmind --------- Core Integrity 0/1450 Matter 111/300 Energy 100/100 System Corruption 5% Temperature Cool (0) Movement Core (50) Location -2/Testing Parts ------- > --- POWER (3) -------- (None) > --- PROPULSION (7) --- (None) > --- UTILITY (9) ------ (None) > --- WEAPON (4) ------- (None) > --- INVENTORY (5) ---- Layered Medium Armor Plating Layered Medium Armor Plating Vibroblade SGEMP Prototype Peak State ------------ > --- POWER ------------ Light Antimatter Reactor Micro Antimatter Reactor > --- PROPULSION ------- Antigrav System Antigrav System Cooled Gravmag System Improved Antigrav System Improved Gyrokinetic Inverter Combat Antigrav System > --- UTILITY ---------- Advanced Thermal Generator Improved Heat Sink Advanced Heat Sink Matter Compressor Advanced Target Analyzer Improved Phase Shifter Hardened Medium Armor Plating Improved Light Armor Plating > --- WEAPON ----------- Long-range Phase Cannon Nova Cannon Hardcell Cannon Linear Accelerator > --- INVENTORY -------- Particle Reactor Linear Gravjet Advanced Field Recycling Unit Fusion Bomb Launcher Improved Remote Datajack [Rating: 130] Favorites ----------- Power Enhanced Nuclear Core Engine Cooled Deuterium Engine Power Core Enhanced Nuclear Core Reactor Light Antimatter Reactor Propulsion Armored Wheel Treads Armored Treads Leg Aluminum Leg Wheel Armored Wheel Hover Unit Antigrav System Flight Unit Impulse Thruster Array Utility Huge Storage Unit Device Improved Cooling System Storage Huge Storage Unit Processor Experimental Targeting Computer Hackware Hacking Suite Protection Improved Medium Armor Plating Weapon Mini Assault Cannon Energy Gun AWS/Thermal Energy Cannon Cooled Particle Cannon Ballistic Cannon Mini Assault Cannon Launcher Precision Grenade Launcher Special Weapon Remote Datajack Impact Weapon Power Maul Slashing Weapon Vibroblade Special Melee Weapon Datajack Build | -11 -10 -10 -9 -9 -9 -8 -8 -8 -7 -7 -7 -7 -6 -6 -6 -6 -5 -5 -5 -5 -4 -4 -3 -2 -2 ------- Run | Yrd Mat Min Mat Min Exi Min Mat Gar Fac Gar Fac Gar Fac Gar Fac Gar Fac Upp Upp War Pro Fac Res Res Tes Slots Evolved 16 | . . . 2 . . . 2 . 2 . . . 2 . . . 2 . . . . 2 2 2 . Power 2 | . . . . . . . . . . . . . . . . . 1 . . . . . . 1 . Propulsion 5 | . . . 2 . . . . . . . . . . . . . . . . . . . 2 1 . Utility 7 | . . . . . . . 2 . 1 . . . 2 . . . 1 . . . . 1 . . . Weapon 2 | . . . . . . . . . 1 . . . . . . . . . . . . 1 . . . Parts Attached 234 | 1 3 1 5 1 1 . 16 7 4 6 15 19 4 13 19 4 9 13 1 . 20 42 26 1 3 Power 21 | . . . . 1 . . 2 . . . 2 2 . . 1 . 1 2 . . 3 4 3 . . Engine 9 | . . . . 1 . . 2 . . . 2 2 . . . . 1 1 . . . . . . . Core 5 | . . . . . . . . . . . . . . . 1 . . 1 . . 2 1 . . . Reactor 7 | . . . . . . . . . . . . . . . . . . . . . 1 3 3 . . Propulsion 48 | . 2 . 2 . . . 5 . . 1 3 1 . 1 1 2 1 3 . . 6 8 9 1 2 Treads 23 | . . . 2 . . . 3 . . . 2 1 . 1 1 . 1 3 . . 6 2 1 . . Leg . | . . . . . . . . . . . . . . . . . . . . . . . . . . Wheel 9 | . 2 . . . . . 2 . . 1 1 . . . . 2 . . . . . 1 . . . Hover 13 | . . . . . . . . . . . . . . . . . . . . . . 5 8 . . Flight 3 | . . . . . . . . . . . . . . . . . . . . . . . . 1 2 Utility 69 | 1 1 1 . . . . 3 2 3 2 3 3 3 5 6 . 4 4 . . 5 14 9 . . Device 28 | 1 . 1 . . . . . . 1 1 . . . 1 2 . 2 2 . . 4 8 5 . . Storage 5 | . 1 . . . . . . . . . . . . . . . . . . . . 3 1 . . Processor 3 | . . . . . . . . . . . . . . . 1 . . . . . . 1 1 . . Hackware 8 | . . . . . . . 1 . . . . 2 . 4 1 . . . . . . . . . . Protection 25 | . . . . . . . 2 2 2 1 3 1 3 . 2 . 2 2 . . 1 2 2 . . Artifact . | . . . . . . . . . . . . . . . . . . . . . . . . . . Weapon 96 | . . . 3 . 1 . 6 5 1 3 7 13 1 7 11 2 3 4 1 . 6 16 5 . 1 Energy Gun 16 | . . . 2 . 1 . . . . . 2 1 1 . . . . . . . 3 5 1 . . Energy Cannon 22 | . . . 1 . . . 4 1 . . 2 5 . 1 2 . . 1 . . 1 2 2 . . Ballistic Gun . | . . . . . . . . . . . . . . . . . . . . . . . . . . Ballistic Cannon 26 | . . . . . . . 2 1 1 1 1 1 . . 4 . 2 1 1 . 1 8 2 . . Launcher 14 | . . . . . . . . 2 . 2 1 3 . 2 1 1 1 1 . . . . . . . Special Weapon 13 | . . . . . . . . . . . . 3 . 2 4 1 . 1 . . 1 1 . . . Impact Weapon 3 | . . . . . . . . . . . 1 . . 2 . . . . . . . . . . . Slashing Weapon 1 | . . . . . . . . . . . . . . . . . . . . . . . . . 1 Piercing Weapon . | . . . . . . . . . . . . . . . . . . . . . . . . . . Special Melee Weapon 1 | . . . . . . . . 1 . . . . . . . . . . . . . . . . . Unidentified Prototypes 15 | . . . . . . . 1 . . . 4 . . . 3 . 1 . . . . 1 2 . 3 Corrupted Parts 1 | . . . . . . . . . . . . . . . . . . . . . . 1 . . . System Corruption 1 | . . . . . . . . . . . . . . . . . . . . . . 1 . . . Parts Lost 70 | . . . 1 . . . . . 2 1 3 1 . . 2 . . 5 1 . 17 18 17 . 2 Power 8 | . . . . . . . . . . . . . . . . . . 1 . . 2 2 3 . . Propulsion 19 | . . . . . . . . . 1 . 1 . . . . . . 1 . . 7 4 3 . 2 Utility 28 | . . . . . . . . . . . 1 1 . . 2 . . 2 1 . 6 6 9 . . Weapon 15 | . . . 1 . . . . . 1 1 1 . . . . . . 1 . . 2 6 2 . . Highest Loss Streak 17 | . . . 1 . . . . . 1 1 2 1 . . 1 . . 4 1 . 6 17 6 . 2 To Critical Strikes . | . . . . . . . . . . . . . . . . . . . . . . . . . . Average Slot Usage (%) 88 | . 100 100 100 100 93 88 92 98 88 91 96 100 90 85 86 93 92 92 98 94 75 74 83 2 4 Engine 5 | . 14 14 11 11 11 11 9 9 7 7 7 7 6 6 . . 5 4 5 5 . . . . . Core 2 | . . . . . . . . . . . . . . . 5 6 5 5 5 5 9 4 2 . . Treads 13 | . . . 22 22 22 22 18 18 15 15 14 15 13 13 13 13 11 13 23 23 16 13 . . . Wheel 10 | . 16 28 22 22 22 22 18 18 10 10 14 15 13 13 13 13 11 4 . . . . . . . Hover 2 | . . . . . . . . . . . . . . . . . . . . . . 3 24 . . Device 10 | . 14 14 11 11 11 11 9 . 4 10 8 7 6 5 5 6 9 13 17 17 16 19 16 . . Storage 6 | . 14 14 11 11 11 11 9 9 7 7 7 7 6 6 6 6 5 5 5 5 5 4 3 . . Hackware 5 | . . . . . . . 9 9 7 7 7 10 13 12 10 6 5 5 5 5 2 . . . . Protection 10 | . . . . . . . 9 16 16 11 13 11 17 13 13 13 11 17 15 11 4 2 6 . . Energy Gun 4 | . 28 28 18 11 11 11 7 . . . 1 . 5 6 2 . . . . . 4 9 3 . . Energy Cannon 4 | . . . 3 11 5 . 3 15 12 1 8 13 . . . . . 3 5 5 2 . 4 . . Ballistic Cannon 6 | . . . . . . . . 1 3 13 9 3 6 . 10 13 16 12 11 11 6 6 8 . . Peak Build Rating 130 | 9 9 10 14 14 28 28 45 38 46 47 50 52 70 70 70 68 86 84 86 82 82 95 130 19 26 Average Rating 59 | 6 9 9 12 13 21 28 41 35 41 44 47 50 66 68 64 67 81 76 84 82 65 79 111 12 18 On Entrance 44 | 6 9 9 10 13 14 28 28 38 36 42 47 50 52 70 68 68 68 81 83 82 82 60 95 2 19 Naked Turns 164 | . . . . . . . . . . . . . . . . . . . . . . 2 39 84 39 Heaviest Build 186 | 13 88 88 91 93 96 96 110 113 128 127 126 132 157 135 145 135 160 182 186 166 170 159 96 . 4 Greatest Support 100 | 20 26 26 26 26 26 26 26 22 22 24 24 24 24 24 24 24 24 94 94 94 94 100 74 16 16 Greatest Overweight (x) 15 | . 4 3 3 3 3 3 4 5 10 10 9 5 6 5 6 5 6 15 1 1 2 3 2 . . Average Overweight (x) 3 | . 1 3 3 3 3 3 3 4 7 7 4 4 5 5 5 5 5 9 1 1 1 1 . . . Largest Inventory Capacity 25 | 8 25 25 25 25 25 25 25 25 25 25 25 25 25 25 25 25 25 25 25 25 25 25 5 5 5 Average Capacity 22 | 8 18 25 25 25 25 25 25 25 25 25 25 25 25 25 25 25 25 25 25 25 25 20 5 5 5 Most Carried 25 | 6 8 10 17 18 18 18 25 25 25 23 25 25 25 25 25 25 25 23 22 22 22 17 5 5 5 Average Carried 19 | 6 6 8 10 17 18 18 23 24 23 21 23 24 24 24 23 24 24 21 21 22 15 12 4 4 4 Final Capacity 25 | 8 25 25 25 25 25 25 25 25 25 25 25 25 25 25 25 25 25 25 25 25 25 5 5 5 5 Final Carried 25 | 6 8 9 17 18 18 18 25 25 23 20 25 25 25 24 24 25 22 21 22 22 13 3 3 5 5 Class Distribution -------------------- 28% | Scavenger-Tank 23% | Mutant 20% | Tank 19% | Skirmisher 3% | Scavenger-Skirmisher Dominant Class ---------------- Mutant | -10/Materials Mutant | -10/Mines Mutant | -9/Materials Mutant | -9/Mines Mutant | -9/Exiles Skirmisher | -8/Mines Skirmisher | -8/Materials Mutant | -8/Garrison Mutant | -7/Factory Skirmisher | -7/Garrison Mutant | -7/Factory Scavenger-Tank | -7/Garrison Tank | -6/Factory Commander-Tank | -6/Garrison Tank | -6/Factory Tank | -6/Garrison Tank | -5/Factory Scavenger-Tank | -5/Upper Caves Scavenger-Tank | -5/Upper Caves Scavenger-Tank | -5/Warlord Scavenger-Tank | -4/Proximity Caves Skirmisher | -4/Factory Scavenger-Tank | -3/Research Mutant | -2/Research Mutant | -2/Testing Resources | -11 -10 -10 -9 -9 -9 -8 -8 -8 -7 -7 -7 -7 -6 -6 -6 -6 -5 -5 -5 -5 -4 -4 -3 -2 -2 ----------- Run | Yrd Mat Min Mat Min Exi Min Mat Gar Fac Gar Fac Gar Fac Gar Fac Gar Fac Upp Upp War Pro Fac Res Res Tes Matter Collected 7923 | 200 39 11 195 10 10 . 206 119 128 250 531 332 186 210 741 423 381 1108 290 . 558 1078 812 . 105 Remotely . | . . . . . . . . . . . . . . . . . . . . . . . . . . Salvage Created 10112 | 140 110 156 341 77 . . 720 536 210 278 966 583 240 325 1064 285 209 609 456 . 1165 714 928 . . Parts 471 | 7 8 11 24 5 . . 57 32 11 12 47 28 13 25 44 10 4 17 13 . 30 37 36 . . Haulers Intercepted 5 | . . . . . . . 1 . . . 1 . . . 1 . 1 . . . . . 1 . . Recyclers Shooed 6 | . . 1 . . . . . . . . 1 . . . 3 . . . . . . 1 . . . Parts Field Recycled 11 | . . . . . . . . . . . . . . . . . . . . . . . 11 . . Retrieved Matter 334 | . . . . . . . . . . . . . . . . . . . . . . . 334 . . Parts Self-Destructed 63 | . . . . . . . . . . . . . . . . . . 25 13 . 25 . . . . Prevented 5 | . . . . . . . . . . . . . . . . . . . . . 5 . . . . Kills | -11 -10 -10 -9 -9 -9 -8 -8 -8 -7 -7 -7 -7 -6 -6 -6 -6 -5 -5 -5 -5 -4 -4 -3 -2 -2 ------- Run | Yrd Mat Min Mat Min Exi Min Mat Gar Fac Gar Fac Gar Fac Gar Fac Gar Fac Upp Upp War Pro Fac Res Res Tes Combat Hostiles Destroyed 205 | . 6 4 6 2 . . 15 15 6 9 16 15 2 9 13 11 6 16 9 . 22 14 9 . . Guns 46 | . 6 4 3 1 . . 10 . . . 2 . 2 6 3 . . . . . 5 4 . . . Cannons 129 | . . . 3 1 . . 5 10 6 9 12 10 . . 10 6 3 15 8 . 13 10 8 . . AOE 20 | . . . . . . . . 5 . . 2 4 . 1 . 5 3 . . . . . . . . Classes Destroyed 18 | 2 1 1 4 1 . . 3 . 1 . 1 . . 1 2 . . 1 . . . . . . . Worker 2 | . . . 1 . . . . . . . . . . . . . . . . . . . 1 . . Builder 6 | . . . . . . . 1 . . . 3 . . . 1 . . . . . . . 1 . . Tunneler 4 | 2 1 1 . . . . . . . . . . . . . . . . . . . . . . . Hauler 5 | . . . . . . . 1 . . . 1 . . . 1 . 1 . . . . . 1 . . Recycler 10 | 1 . . . . . . . . . . 3 . 1 . 3 . . . . . . . 2 . . Operator 2 | . . . 1 . . . 1 . . . . . . . . . . . . . . . . . . Watcher 11 | . . . 1 . . . 3 . 1 . 2 . 1 1 1 . . . . . . 1 . . . Swarmer 53 | . 6 2 . . . . 7 5 4 4 3 3 . 4 . 8 . 3 . . 4 . . . . Saboteur 1 | . . . . . . . . . . . . . . 1 . . . . . . . . . . . Grunt 74 | . . 2 4 1 . . . 8 . 2 6 8 . 1 4 1 4 7 9 . 12 4 1 . . Brawler 8 | . . . . . . . . . . . 1 . . . . . . 2 . . 5 . . . . Duelist 3 | . . . . 1 . . . . . . . 1 . . . . . 1 . . . . . . . Sentry 22 | . . . 2 . . . 6 2 . 1 2 3 . . 1 1 . 1 . . 1 . 2 . . Specialist 7 | . . . . . . . . . . . . . . . 2 2 . . . . . 3 . . . Hunter 11 | . . . . . . . 2 . . 2 1 . . . 3 . . 1 . . . . 2 . . Programmer 24 | . . . . . . . . . 2 . 3 . 2 3 2 . 2 . . . . 6 4 . . Heavy 2 | . . . . . . . . . . . . . . . 1 . . . . . . 1 . . . Behemoth 1 | . . . . . . . . . . . . . . . . . . 1 . . . . . . . Best Kill Streak 8 | 2 3 3 4 3 . . 5 5 4 4 5 5 1 4 3 7 4 8 5 . 7 6 3 . . Combat Bots Only 8 | . 3 2 3 2 . . 4 5 4 4 4 5 1 4 2 7 4 8 5 . 7 6 2 . . Max Kills in Single Turn 3 | 1 1 2 1 1 . . 1 3 1 2 2 2 1 1 1 2 2 1 1 . 1 1 1 . . Gunslinging . | . . . . . . . . . . . . . . . . . . . . . . . . . . Exploded 3 | . . . . . . . . 3 . . 1 2 . 1 . 2 1 . . . . . . . . Melee . | . . . . . . . . . . . . . . . . . . . . . . . . . . Uniques/NPCs Destroyed . | . . . . . . . . . . . . . . . . . . . . . . . . . . Combat | -11 -10 -10 -9 -9 -9 -8 -8 -8 -7 -7 -7 -7 -6 -6 -6 -6 -5 -5 -5 -5 -4 -4 -3 -2 -2 -------- Run | Yrd Mat Min Mat Min Exi Min Mat Gar Fac Gar Fac Gar Fac Gar Fac Gar Fac Upp Upp War Pro Fac Res Res Tes Hostile Shots Fired 1529 | . 29 21 14 6 . . 65 32 16 57 123 155 . 16 49 24 36 167 63 . 231 157 147 14 107 Missed 526 | . 14 11 3 . . . 16 8 5 26 43 60 . 4 22 7 16 45 26 . 79 39 50 9 43 Damage Taken 19229 | . 123 120 158 151 . . 535 311 295 392 1040 1097 . 270 495 259 663 1782 518 . 2496 2890 3891 119 1624 Core 4141 | . 8 40 30 61 . . 128 4 37 28 83 63 . . . 49 68 89 56 . 303 681 961 119 1333 Absorbed by Shields 321 | . . . . . . . . . . . . . . . . 10 . . . . . 252 59 . . Ignored by Resistances 1412 | . . . . . . . 6 36 . . . . . . . . . 603 192 . 575 . . . . Regen/Repaired (Parts) 230 | . . . . . . . . . . . 230 . . . . . . . . . . . . . . Core Remaining (%) 67 | 100 . 80 . . . 77 . 76 . . . 69 . . . 94 . . . . 48 40 26 . . Volleys Fired 617 | 6 22 15 30 5 . . 12 24 11 17 53 62 5 21 33 23 15 42 16 . 57 60 88 . . Largest 4 | 2 2 2 2 2 . . 2 2 3 3 3 3 1 1 3 3 3 3 3 . 3 4 4 . . Hottest 349 | 80 80 80 110 110 . . 138 138 186 165 144 159 48 36 166 137 162 206 214 . 247 305 349 . . Shots Fired 1534 | 12 44 30 58 10 . . 64 42 24 37 138 135 9 30 108 44 45 107 51 . 151 161 234 . . Gun 391 | 12 44 30 44 5 . . 40 . . . 12 6 4 9 24 . . . . . 55 55 51 . . Cannon 1073 | . . . 14 5 . . 24 36 24 33 126 112 5 . 77 36 43 104 51 . 94 106 183 . . Launcher 28 | . . . . . . . . 6 . 4 . 8 . 2 . 5 2 1 . . . . . . . Special 42 | . . . . . . . . . . . . 9 . 19 7 3 . 2 . . 2 . . . . Kinetic 716 | . . . . . . . 2 3 8 28 66 19 5 . 75 36 43 87 34 . 60 96 154 . . Thermal 608 | 12 44 30 52 10 . . 40 . . . 60 93 4 9 26 . . 17 17 . 76 46 72 . . Explosive 24 | . . . . . . . . 6 . . . 8 . 2 . 5 2 1 . . . . . . . Electromagnetic 144 | . . . 6 . . . 22 33 16 9 12 6 . . . . . . . . 13 19 8 . . Robot Hit Streak 19 | 2 7 5 11 4 . . 9 4 10 7 9 9 5 18 19 12 6 10 7 . 9 8 9 . . Robot Miss Streak 8 | 2 5 8 2 1 . . 4 2 4 2 3 3 2 1 2 3 3 4 1 . 5 4 4 . . Penetration Max 1 | . . . . . . . . . . 1 . . . . . . . . . . . . . . . Secondary Targets 1 | . 1 . . . . . . . . . . . . . . . . . . . . . . . . Max Gunslinging Chain 1 | . 1 . . . . . . . . . . . . . . . . . . . . . . . . Autonomous 78 | . . . . . . . 40 . . . . . 4 9 25 . . . . . . . . . . Shots Hit Robots 809 | 6 22 14 35 7 . . 43 15 14 21 75 60 6 26 76 24 28 62 28 . 89 85 68 . 5 Core Hits 393 | 4 7 10 18 5 . . 21 19 10 13 33 29 5 9 33 15 16 32 15 . 37 34 26 1 1 Critical Kills 14 | . . . . . . . . . . . . 1 . . . . 2 2 1 . . 2 6 . . Critical Parts Destroyed 17 | . . . . . . . . . . . . . . 2 . . 1 . . . . 4 10 . . Critical Strikes 71 | . . . . 1 . . . 1 1 2 4 1 . 2 4 4 4 4 2 . 7 13 20 . 1 Burn 4 | . . . . 1 . . . . . . . . . . . . . . . . 1 1 1 . . Meltdown 4 | . . . . . . . . . . . . 1 . . . . . 1 1 . . . 1 . . Destroy 27 | . . . . . . . . . . . . . . . . . 3 1 . . . 7 16 . . Blast 31 | . . . . . . . . . . 2 4 . . . 4 4 1 2 1 . 6 5 2 . . Corrupt 2 | . . . . . . . . 1 1 . . . . . . . . . . . . . . . . Smash 2 | . . . . . . . . . . . . . . 2 . . . . . . . . . . . Sever 1 | . . . . . . . . . . . . . . . . . . . . . . . . . 1 Melee Attacks 20 | . . . . . . . . 1 . . 6 . . 3 . . . . . . . . . . 10 Impact 9 | . . . . . . . . . . . 6 . . 3 . . . . . . . . . . . Slashing 10 | . . . . . . . . . . . . . . . . . . . . . . . . . 10 Piercing . | . . . . . . . . . . . . . . . . . . . . . . . . . . Sneak Attacks 7 | . . . . . . . . . . . 2 . . . . . . . . . . . . . 5 Combat Hostiles 5 | . . . . . . . . . . . . . . . . . . . . . . . . . 5 Follow-up Attacks . | . . . . . . . . . . . . . . . . . . . . . . . . . . Damage Inflicted 24434 | 89 247 179 466 115 . . 1151 731 415 743 2530 1824 184 485 2146 978 1323 1996 867 . 2876 2535 2071 2 481 Guns 5002 | 89 247 179 344 64 . . 762 . . . 142 60 100 286 620 . . . . . 714 844 551 . . Cannons 16100 | . . . 122 51 . . 389 434 295 562 1933 1251 84 . 1478 600 766 1981 867 . 2162 1605 1520 . . Explosions 2491 | . . . . . . . . 297 120 181 249 513 . 95 . 378 557 15 . . . 86 . . . Melee 766 | . . . . . . . . . . . 206 . . 104 . . . . . . . . . . 456 Ramming 75 | . . . . . . . . . . . . . . . 48 . . . . . . . . 2 25 Kinetic 10341 | . . . . . . . . . 165 465 964 167 84 . 1422 600 766 1564 437 . 1365 1409 933 . . Thermal 9187 | 89 247 179 434 115 . . 762 . 54 . 1128 1084 100 286 676 . . 417 430 . 1212 848 1126 . . Explosive 1945 | . . . . . . . . 297 . . 90 513 . 95 . 378 557 15 . . . . . . . Electromagnetic 2120 | . . . 32 . . . 389 434 196 278 142 60 . . . . . . . . 299 278 12 . . Impact 310 | . . . . . . . . . . . 206 . . 104 . . . . . . . . . . . Slashing 456 | . . . . . . . . . . . . . . . . . . . . . . . . . 456 Piercing . | . . . . . . . . . . . . . . . . . . . . . . . . . . Highest Corruption 29 | . . . . . . . 2 2 1 1 . . . . 3 1 3 11 11 11 22 6 29 . 5 Average Corruption 6 | . . . . . . . 2 2 1 1 . . . . 1 1 2 10 11 11 17 3 4 . 2 Corruption Purged 4 | . . . . . . . . . . 1 . . . . 3 . . . . . . . . . . Corruption Blocked . | . . . . . . . . . . . . . . . . . . . . . . . . . . Effects 232 | . . . . . . . 6 12 3 2 . . . . 4 4 1 57 47 4 45 28 19 . . Message Errors 60 | . . . . . . . 2 2 . . . . . . 2 . . 17 9 3 12 10 3 . . Matter Fused 44 | . . . . . . . 4 2 . 1 . . . . 1 1 . 13 8 . 10 1 3 . . Heat Flow Errors 17 | . . . . . . . . 2 . . . . . . . 1 1 3 3 . 2 4 1 . . Energy Discharges 31 | . . . . . . . . 1 2 . . . . . . . . 7 8 . 9 2 2 . . Parts Rejected 6 | . . . . . . . . . . 1 . . . . . . . 1 . . 3 . 1 . . Parts Fused 3 | . . . . . . . . 1 . . . . . . . . . . 1 . 1 . . . . Data Loss (minor) 33 | . . . . . . . . 3 . . . . . . 1 2 . 5 10 1 5 2 4 . . Data Loss (major) 10 | . . . . . . . . . . . . . . . . . . 2 5 . 1 1 1 . . Misfires 11 | . . . . . . . . . . . . . . . . . . 1 3 . . 6 1 . . Alerts 8 | . . . . . . . . 1 1 . . . . . . . . 6 . . . . . . . Weapon Failures 9 | . . . . . . . . . . . . . . . . . . 2 . . 2 2 3 . . Overload Shots . | . . . . . . . . . . . . . . . . . . . . . . . . . . Overflow Damage 789 | . . . . . . . 12 . 21 70 269 12 . 104 46 . 148 17 6 . . 46 38 . . Projectiles 275 | . . . . . . . 12 . . 70 64 . . . 18 . 15 17 6 . . 35 38 . . Explosions 302 | . . . . . . . . . 21 . 125 12 . . . . 133 . . . . 11 . . . Melee 212 | . . . . . . . . . . . 80 . . 104 28 . . . . . . . . . . Knockbacks 90 | . . . . . . . . . . 3 8 1 2 1 17 2 11 10 6 . 6 11 12 . . Impact 3 | . . . . . . . . . . . 1 . . 1 1 . . . . . . . . . . Kinetic 83 | . . . . . . . . . . 3 7 1 2 . 13 2 11 10 6 . 6 11 11 . . Secondary 4 | . . . . . . . . . . . . . . . 3 . . . . . . . 1 . . Self-Inflicted Damage 700 | . . . . . . . . 8 70 . 193 . . . 24 . 273 . . . . 70 51 . 11 Shots 10 | . . . . . . . . 1 2 . 2 . . . . . 3 . . . . 1 1 . . Rammed 11 | . . . . . . . . . . . . . . . 1 . . . . . . . . 3 7 Targets Rammed 11 | . . . . . . . . . . . . . . . 1 . . . . . . . . 3 7 Kicked . | . . . . . . . . . . . . . . . . . . . . . . . . . . Crushed . | . . . . . . . . . . . . . . . . . . . . . . . . . . Highest Temperature 566 | 90 180 99 226 207 . . 340 324 63 . 42 87 . . 267 88 161 324 220 . 452 523 566 . . Average Temperature 113 | 42 68 54 56 106 . . 89 109 24 . 13 28 . . 66 27 29 109 34 . 134 287 171 . . Received Heat Transfer 3201 | . . 33 114 12 . . 54 198 . 27 225 315 . 63 117 60 39 390 346 . 717 287 96 . 108 Effects 32 | . . . . . . . . 1 . . . . . . . . . 1 . . 3 12 15 . . Shutdowns 14 | . . . . . . . . . . . . . . . . . . . . . . 5 9 . . Energy Bleed 2 | . . . . . . . . 1 . . . . . . . . . . . . . . 1 . . Interference 4 | . . . . . . . . . . . . . . . . . . 1 . . 2 . 1 . . Matter Decay 2 | . . . . . . . . . . . . . . . . . . . . . . 1 1 . . Short Circuit 2 | . . . . . . . . . . . . . . . . . . . . . . 1 1 . . Damage (minor) 3 | . . . . . . . . . . . . . . . . . . . . . 1 . 2 . . Damage (major) 4 | . . . . . . . . . . . . . . . . . . . . . . 4 . . . Damage (core) 1 | . . . . . . . . . . . . . . . . . . . . . . 1 . . . Siege Activations . | . . . . . . . . . . . . . . . . . . . . . . . . . . Robots Corrupted 5 | . . . . . . . . . . . 1 . . 2 1 . . . . . 1 . . . . Combat Hostiles 3 | . . . . . . . . . . . . . . 2 . . . . . . 1 . . . . Parts Fried 17 | . . . . . . . 2 2 . 1 3 . . 1 2 . . . . . 4 2 . . . Impact Corruptions 8 | . . . . . . . . . . . 3 . . 3 2 . . . . . . . . . . Robots Melted 7 | . . . . . . . . . . . . 1 . . . . . 1 1 . 3 . 1 . . Combat Hostiles 7 | . . . . . . . . . . . . 1 . . . . . 1 1 . 3 . 1 . . Parts Melted 28 | . 3 . 2 . . . 1 . . . 2 6 . 1 1 . . 1 1 . 2 1 7 . . Heat Transferred 12955 | 200 550 400 1077 370 . . 999 . 50 . 1395 1498 111 333 888 . . 407 444 . 1620 1303 1310 . . Parts Sabotaged 2 | . . . . . . . . . . . . . . 2 . . . . . . . . . . . Parts Stolen . | . . . . . . . . . . . . . . . . . . . . . . . . . . Parts Stripped . | . . . . . . . . . . . . . . . . . . . . . . . . . . Power Chain Reactions 1 | . . . . . . . . . 1 . . . . . . . . . . . . . . . . Alert | -11 -10 -10 -9 -9 -9 -8 -8 -8 -7 -7 -7 -7 -6 -6 -6 -6 -5 -5 -5 -5 -4 -4 -3 -2 -2 ------- Run | Yrd Mat Min Mat Min Exi Min Mat Gar Fac Gar Fac Gar Fac Gar Fac Gar Fac Upp Upp War Pro Fac Res Res Tes Peak Influence 2099 | 15 234 272 200 112 . . 297 667 412 541 400 1004 556 525 275 303 332 . . . . 124 88 36 2099 Initial 527 | . 9 91 105 62 . . . 138 350 288 283 200 527 173 275 81 158 . . . . . 5 9 20 Average 264 | 9 112 198 115 108 . . 84 465 322 404 262 630 446 370 180 236 197 . . . . 21 31 12 1764 Maximum Alert Level 5 | . 1 1 1 . . . 1 2 2 2 2 3 2 2 1 1 1 . . . . . . . 5 Low Security (%) 48 | 100 69 44 91 100 . 100 89 13 14 . 16 . . 16 57 20 63 . . . . 100 100 100 . Level 1 32 | . 30 55 8 . . . 10 24 78 26 81 32 50 22 42 79 36 . . . . . . . . Level 2 12 | . . . . . . . . 62 6 73 1 16 49 61 . . . . . . . . . . . Level 3 4 | . . . . . . . . . . . . 51 . . . . . . . . . . . . . Level 4 . | . . . . . . . . . . . . . . . . . . . . . . . . . . Level 5 . | . . . . . . . . . . . . . . . . . . . . . . . . . . High Security . | . . . . . . . . . . . . . . . . . . . . . . . . . . Max Security 1 | . . . . . . . . . . . . . . . . . . . . . . . . . 99 Squads Dispatched 44 | . . . 1 . . . 4 . 2 . 4 . 3 . 5 . 1 . . . 1 7 4 . 12 Investigation 1 | . . . . . . . 1 . . . . . . . . . . . . . . . . . . Extermination 17 | . . . . . . . . . 2 . 3 . 3 . 2 . 1 . . . . 3 3 . . Reinforcement 13 | . . . 1 . . . 3 . . . 1 . . . 3 . . . . . . 4 1 . . Assault 13 | . . . . . . . . . . . . . . . . . . . . . 1 . . . 12 Garrison . | . . . . . . . . . . . . . . . . . . . . . . . . . . Intercept . | . . . . . . . . . . . . . . . . . . . . . . . . . . Searches Triggered . | . . . . . . . . . . . . . . . . . . . . . . . . . . Construction Impeded 2 | . . . . . . . . . . . . . . . 1 . . . . . . 1 . . . Haulers Reinforced 2 | . . . . . . . . . . . 1 . . . . . . . . . . . 1 . . Active Scanning Responses . | . . . . . . . . . . . . . . . . . . . . . . . . . . Cargo Convoy Interrupts . | . . . . . . . . . . . . . . . . . . . . . . . . . . Stealth | -11 -10 -10 -9 -9 -9 -8 -8 -8 -7 -7 -7 -7 -6 -6 -6 -6 -5 -5 -5 -5 -4 -4 -3 -2 -2 --------- Run | Yrd Mat Min Mat Min Exi Min Mat Gar Fac Gar Fac Gar Fac Gar Fac Gar Fac Upp Upp War Pro Fac Res Res Tes Distress Signals 12 | . . . . . . . 2 . . . 1 . . . 5 . . . . . . . 3 . 1 Communications Jammed . | . . . . . . . . . . . . . . . . . . . . . . . . . . Distress Signals . | . . . . . . . . . . . . . . . . . . . . . . . . . . Times Spotted 374 | . 10 7 11 2 . . 17 14 8 11 24 30 3 19 27 9 11 19 9 . 24 21 24 5 69 Peak Tracking Total 34 | . 3 3 3 2 . . 4 5 3 5 4 6 2 4 4 6 5 10 5 . 8 7 7 3 34 Tactical Retreats 39 | . 1 . . . . . 2 . . 2 1 1 . 1 4 . . 1 . . 2 4 6 2 12 Traps | -11 -10 -10 -9 -9 -9 -8 -8 -8 -7 -7 -7 -7 -6 -6 -6 -6 -5 -5 -5 -5 -4 -4 -3 -2 -2 ------- Run | Yrd Mat Min Mat Min Exi Min Mat Gar Fac Gar Fac Gar Fac Gar Fac Gar Fac Upp Upp War Pro Fac Res Res Tes Traps Triggered 27 | . . . . . . . 2 2 1 3 1 5 . 5 1 3 2 . . . . . 1 1 . Indirectly . | . . . . . . . . . . . . . . . . . . . . . . . . . . Trap Hack Attempts . | . . . . . . . . . . . . . . . . . . . . . . . . . . Triggered . | . . . . . . . . . . . . . . . . . . . . . . . . . . Disarmed 1 | . . . . . . . 1 . . . . . . . . . . . . . . . . . . Reprogrammed . | . . . . . . . . . . . . . . . . . . . . . . . . . . Reused . | . . . . . . . . . . . . . . . . . . . . . . . . . . Traps Extracted . | . . . . . . . . . . . . . . . . . . . . . . . . . . Installed . | . . . . . . . . . . . . . . . . . . . . . . . . . . Triggered . | . . . . . . . . . . . . . . . . . . . . . . . . . . Machines | -11 -10 -10 -9 -9 -9 -8 -8 -8 -7 -7 -7 -7 -6 -6 -6 -6 -5 -5 -5 -5 -4 -4 -3 -2 -2 ---------- Run | Yrd Mat Min Mat Min Exi Min Mat Gar Fac Gar Fac Gar Fac Gar Fac Gar Fac Upp Upp War Pro Fac Res Res Tes Machines Disabled 40 | . . . 1 . . . 1 2 7 . 6 5 . 2 . . 4 . . . . 8 4 . . Max in Single Turn 5 | . . . 1 . . . 1 1 4 . 3 1 . 1 . . 2 . . . . 5 1 . . Garrison Access 1 | . . . . . . . . . . . . . . . . . . . . . . . 1 . . Garrison Relay 8 | . . . . . . . . 2 . . . 4 . 2 . . . . . . . . . . . Machines Repaired . | . . . . . . . . . . . . . . . . . . . . . . . . . . Machines Dismantled . | . . . . . . . . . . . . . . . . . . . . . . . . . . Machines Sabotaged . | . . . . . . . . . . . . . . . . . . . . . . . . . . Overloaded Fab Kills . | . . . . . . . . . . . . . . . . . . . . . . . . . . Hacking | -11 -10 -10 -9 -9 -9 -8 -8 -8 -7 -7 -7 -7 -6 -6 -6 -6 -5 -5 -5 -5 -4 -4 -3 -2 -2 --------- Run | Yrd Mat Min Mat Min Exi Min Mat Gar Fac Gar Fac Gar Fac Gar Fac Gar Fac Upp Upp War Pro Fac Res Res Tes Machines Accessed 42 | . 1 . 6 . 1 . 8 3 1 . 5 2 4 . 6 . 2 . 1 . . 1 1 . . Terminals 26 | . 1 . 6 . . . 7 3 . . . 2 2 . 3 . 1 . . . . 1 . . . Fabricators 3 | . . . . . . . . . . . 2 . 1 . . . . . . . . . . . . Repair Stations 3 | . . . . . . . . . . . 2 . . . 1 . . . . . . . . . . Recycling Units 1 | . . . . . . . . . . . . . . . 1 . . . . . . . . . . Scanalyzers 1 | . . . . . . . . . . . . . . . . . 1 . . . . . . . . Garrison Access 6 | . . . . . . . 1 . 1 . 1 . 1 . 1 . . . . . . . 1 . . Total Hacks 93 | . 5 . 13 . 1 . 25 6 1 . 11 2 4 . 11 . 5 . 7 . . 1 1 . . Successful 47 | . 2 . 6 . 1 . 13 2 1 . 6 2 2 . 2 . 2 . 7 . . . 1 . . Failed 46 | . 3 . 7 . . . 12 4 . . 5 . 2 . 9 . 3 . . . . 1 . . . Catastrophic 9 | . . . 2 . . . . 2 . . . . 2 . 1 . 1 . . . . 1 . . . Database Lockouts . | . . . . . . . . . . . . . . . . . . . . . . . . . . Manual 50 | . 2 . 10 . 1 . 21 3 . . 4 . 3 . 4 . 2 . . . . . . . . Terminals 61 | . 5 . 13 . . . 24 6 . . . 2 2 . 6 . 2 . . . . 1 . . . Fabricators 5 | . . . . . . . . . . . 4 . 1 . . . . . . . . . . . . Repair Stations 8 | . . . . . . . . . . . 6 . . . 2 . . . . . . . . . . Recycling Units 2 | . . . . . . . . . . . . . . . 2 . . . . . . . . . . Scanalyzers 3 | . . . . . . . . . . . . . . . . . 3 . . . . . . . . Garrison Access 6 | . . . . . . . 1 . 1 . 1 . 1 . 1 . . . . . . . 1 . . Terminal Hacks 22 | . . . 4 . 1 . 6 2 . . . 2 . . . . . . 7 . . . . . . Record 7 | . . . . . . . . . . . . . . . . . . . 7 . . . . . . Branch Access Points 1 | . . . 1 . . . . . . . . . . . . . . . . . . . . . . Emergency Access Points 2 | . . . . . . . . 1 . . . 1 . . . . . . . . . . . . . Terminal Index 1 | . . . . . . . 1 . . . . . . . . . . . . . . . . . . Unreport Threat 3 | . . . 1 . . . 2 . . . . . . . . . . . . . . . . . . Locate Traps 1 | . . . 1 . . . . . . . . . . . . . . . . . . . . . . Disarm Traps 1 | . . . . . . . 1 . . . . . . . . . . . . . . . . . . Dispatch Records 1 | . . . . . . . 1 . . . . . . . . . . . . . . . . . . Recall Reinforcements 2 | . . . 1 . . . 1 . . . . . . . . . . . . . . . . . . Garrison Registry 1 | . . . . . . . . 1 . . . . . . . . . . . . . . . . . Patrol Navigation 1 | . . . . . . . . . . . . 1 . . . . . . . . . . . . . Derelict Proto ID Bank 1 | . . . . . 1 . . . . . . . . . . . . . . . . . . . . Fabricator Hacks . | . . . . . . . . . . . . . . . . . . . . . . . . . . Repair Station Hacks 4 | . . . . . . . . . . . 3 . . . 1 . . . . . . . . . . Scan Component 3 | . . . . . . . . . . . 2 . . . 1 . . . . . . . . . . Repair 1 | . . . . . . . . . . . 1 . . . . . . . . . . . . . . Recycling Unit Hacks . | . . . . . . . . . . . . . . . . . . . . . . . . . . Scanalyzer 2 | . . . . . . . . . . . . . . . . . 2 . . . . . . . . Insert Component 1 | . . . . . . . . . . . . . . . . . 1 . . . . . . . . Analyze 1 | . . . . . . . . . . . . . . . . . 1 . . . . . . . . Garrison Access Hacks 6 | . . . . . . . 1 . 1 . 1 . 1 . 1 . . . . . . . 1 . . Unlock Access 5 | . . . . . . . 1 . 1 . 1 . 1 . 1 . . . . . . . . . . Seal Access 1 | . . . . . . . . . . . . . . . . . . . . . . . 1 . . Unauthorized Hacks 13 | . 2 . 2 . . . 6 . . . 2 . 1 . . . . . . . . . . . . Terminals 10 | . 2 . 2 . . . 6 . . . . . . . . . . . . . . . . . . Botnet 5 | . 1 . 2 . . . 2 . . . . . . . . . . . . . . . . . . Operators 1 | . . . . . . . 1 . . . . . . . . . . . . . . . . . . Skim 4 | . 1 . . . . . 3 . . . . . . . . . . . . . . . . . . Fabricators 3 | . . . . . . . . . . . 2 . 1 . . . . . . . . . . . . Liberate 3 | . . . . . . . . . . . 2 . 1 . . . . . . . . . . . . Repair Stations . | . . . . . . . . . . . . . . . . . . . . . . . . . . Recycling Units . | . . . . . . . . . . . . . . . . . . . . . . . . . . Scanalyzers . | . . . . . . . . . . . . . . . . . . . . . . . . . . Garrison Access . | . . . . . . . . . . . . . . . . . . . . . . . . . . Data Cores Recovered 1 | . . . 1 . . . . . . . . . . . . . . . . . . . . . . Used . | . . . . . . . . . . . . . . . . . . . . . . . . . . Hacking Detections 33 | . 1 . 5 . . . 7 2 1 . 3 1 4 . 6 . 2 . . . . 1 . . . Full Trace Events 2 | . 1 . . . . . . 1 . . . . . . . . . . . . . . . . . Feedback Events . | . . . . . . . . . . . . . . . . . . . . . . . . . . Feedback Blocked . | . . . . . . . . . . . . . . . . . . . . . . . . . . Robot Schematics Acquired . | . . . . . . . . . . . . . . . . . . . . . . . . . . Robots Built . | . . . . . . . . . . . . . . . . . . . . . . . . . . Authchips . | . . . . . . . . . . . . . . . . . . . . . . . . . . Time . | . . . . . . . . . . . . . . . . . . . . . . . . . . Total Robot Build Rating . | . . . . . . . . . . . . . . . . . . . . . . . . . . Part Schematics Acquired 1 | . . . . . . . . . . . . . . . . . 1 . . . . . . . . Parts Built . | . . . . . . . . . . . . . . . . . . . . . . . . . . Authchips . | . . . . . . . . . . . . . . . . . . . . . . . . . . Time . | . . . . . . . . . . . . . . . . . . . . . . . . . . Total Part Build Rating . | . . . . . . . . . . . . . . . . . . . . . . . . . . Parts Repaired 1 | . . . . . . . . . . . 1 . . . . . . . . . . . . . . Time 19 | . . . . . . . . . . . 19 . . . . . . . . . . . . . . Parts Recycled . | . . . . . . . . . . . . . . . . . . . . . . . . . . Recycled Matter . | . . . . . . . . . . . . . . . . . . . . . . . . . . Retrieved Matter . | . . . . . . . . . . . . . . . . . . . . . . . . . . Retrieved Components . | . . . . . . . . . . . . . . . . . . . . . . . . . . Parts Scanalyzed 1 | . . . . . . . . . . . . . . . . . 1 . . . . . . . . Part Schematics Acquired 1 | . . . . . . . . . . . . . . . . . 1 . . . . . . . . Parts Damaged 1 | . . . . . . . . . . . . . . . . . 1 . . . . . . . . Bothacking | -11 -10 -10 -9 -9 -9 -8 -8 -8 -7 -7 -7 -7 -6 -6 -6 -6 -5 -5 -5 -5 -4 -4 -3 -2 -2 ------------ Run | Yrd Mat Min Mat Min Exi Min Mat Gar Fac Gar Fac Gar Fac Gar Fac Gar Fac Upp Upp War Pro Fac Res Res Tes Used RIF Installer 7 | . . . . . . . . 1 . 1 . 1 . 2 . 2 . . . . . . . . . Threat Obfuscator 2 | . . . . . . . . . . 1 . . . . . 1 . . . . . . . . . Signal Jammer 1 | . . . . . . . . . . . . . . 1 . . . . . . . . . . . Patrol Navigation 1 | . . . . . . . . . . . . . . . . 1 . . . . . . . . . Structural Interface 1 | . . . . . . . . . . . . . . 1 . . . . . . . . . . . Program Shield 1 | . . . . . . . . . . . . 1 . . . . . . . . . . . . . Robots Hacked 13 | . . . . . . . . . . . . 1 . 7 5 . . . . . . . . . . Non-combat 2 | . . . . . . . . . . . . . . . 2 . . . . . . . . . . Combat 11 | . . . . . . . . . . . . 1 . 7 3 . . . . . . . . . . Robot Hacks Applied 14 | . . . . . . . . . . . . 1 . 8 5 . . . . . . . . . . no_distress 2 | . . . . . . . . . . . . . . . 2 . . . . . . . . . . amplify_resonance 1 | . . . . . . . . . . . . 1 . . . . . . . . . . . . . disable_weapons 1 | . . . . . . . . . . . . . . 1 . . . . . . . . . . . go_dormant 1 | . . . . . . . . . . . . . . 1 . . . . . . . . . . . formatsys_high 9 | . . . . . . . . . . . . . . 6 3 . . . . . . . . . . Relay Couplers Released 33 | . . . . . . . . 9 . . . 17 . 7 . . . . . . . . . . . Machine Destruction 33 | . . . . . . . . 9 . . . 17 . 7 . . . . . . . . . . . Attached 7 | . . . . . . . . . . . . 2 . 4 1 . . . . . . . . . . Fabnet Peak Effective % . | . . . . . . . . . . . . . . . . . . . . . . . . . . Robots Rewired 14 | . . . . . . . . . . . . 4 . 5 . 2 . 2 . . 1 . . . . Allies Hacked . | . . . . . . . . . . . . . . . . . . . . . . . . . . Hacks Repelled . | . . . . . . . . . . . . . . . . . . . . . . . . . . Allies | -11 -10 -10 -9 -9 -9 -8 -8 -8 -7 -7 -7 -7 -6 -6 -6 -6 -5 -5 -5 -5 -4 -4 -3 -2 -2 -------- Run | Yrd Mat Min Mat Min Exi Min Mat Gar Fac Gar Fac Gar Fac Gar Fac Gar Fac Upp Upp War Pro Fac Res Res Tes Total Allies 31 | . . 3 . . . . . . . . 3 4 . 11 3 2 . 2 2 . 1 . . . . Largest Group 11 | . . 3 2 . . . . . . . 3 3 . 11 3 2 . 2 2 2 1 . . . . Highest-Rated Group 299 | . . 40 24 . . . . . . . 60 129 . 299 88 24 . 78 50 50 47 . . . . Highest-Rated Ally 49 | . . 16 16 . . . . . . . 20 43 . 30 47 12 . 49 25 25 47 . . . . Total Orders 2 | . . . . . . . . . . . . 2 . . . . . . . . . . . . . STAY 1 | . . . . . . . . . . . . 1 . . . . . . . . . . . . . FOLLOW 1 | . . . . . . . . . . . . 1 . . . . . . . . . . . . . Ally Attacks 210 | . . 18 15 . . . . . . . 18 50 . 59 18 9 . 20 . . 3 . . . . Total Damage 4281 | . . 169 133 . . . . . . . 177 1395 . 1106 429 56 . 724 . . 92 . . . . Kills 33 | . . 3 1 . . . . . . . 2 17 . 8 1 . . 1 . . . . . . . Allies Corrupted 1 | . . . . . . . . . . . . . . . . . . . . . 1 . . . . Allies Melted . | . . . . . . . . . . . . . . . . . . . . . . . . . . Intel | -11 -10 -10 -9 -9 -9 -8 -8 -8 -7 -7 -7 -7 -6 -6 -6 -6 -5 -5 -5 -5 -4 -4 -3 -2 -2 ------- Run | Yrd Mat Min Mat Min Exi Min Mat Gar Fac Gar Fac Gar Fac Gar Fac Gar Fac Upp Upp War Pro Fac Res Res Tes Robot Analysis Total . | . . . . . . . . . . . . . . . . . . . . . . . . . . Derelict Logs Recovered 5 | . . 1 . . . . . . . . . . . . . . . 2 1 . 1 . . . . Drone Launches . | . . . . . . . . . . . . . . . . . . . . . . . . . . Drone Recoveries . | . . . . . . . . . . . . . . . . . . . . . . . . . . Exploration | -11 -10 -10 -9 -9 -9 -8 -8 -8 -7 -7 -7 -7 -6 -6 -6 -6 -5 -5 -5 -5 -4 -4 -3 -2 -2 ------------- Run | Yrd Mat Min Mat Min Exi Min Mat Gar Fac Gar Fac Gar Fac Gar Fac Gar Fac Upp Upp War Pro Fac Res Res Tes Turns Passed 21033 | 75 246 268 545 113 342 302 1603 822 769 614 1911 1563 807 631 1246 573 957 1557 1374 95 992 1547 1578 205 298 Spaces Moved 10716 | 31 125 152 269 70 252 212 858 445 267 248 968 805 312 284 559 276 485 512 534 40 294 605 1143 406 564 Core 320 | . . . . . . . . . . . . . . . . . . . . . . 13 79 156 72 Treads 1359 | . . . . . . . 1 . . . . . . 1 . . . 127 534 40 294 362 . . . Legs 79 | 31 48 . . . . . . . . . . . . . . . . . . . . . . . . Wheels 6922 | . 77 152 269 70 252 212 857 445 267 248 968 805 312 283 559 276 485 385 . . . . . . . Hover 1294 | . . . . . . . . . . . . . . . . . . . . . . 230 1064 . . Flight 742 | . . . . . . . . . . . . . . . . . . . . . . . . 250 492 Fastest Speed 30 | 120 120 135 135 135 135 135 135 145 160 165 150 150 150 165 150 165 165 180 242 242 242 50 36 45 30 Average Speed 156 | 120 131 135 135 135 135 135 144 156 193 198 157 158 172 166 166 165 178 273 242 242 269 197 95 46 45 Slowest Speed 720 | 120 400 135 135 135 135 135 480 160 240 240 225 165 180 560 180 165 180 720 242 242 325 405 180 50 50 Overloaded Moves . | . . . . . . . . . . . . . . . . . . . . . . . . . . Propulsion Burnouts . | . . . . . . . . . . . . . . . . . . . . . . . . . . Robots Hopped 2 | . . . . . . . . . . . . . . . . . . . . . . . . . 2 Cave-ins Triggered 7 | . . . . . . . . . . . . . . . . . . . . . . . 7 . . Exploration Rate (%) 35 | 4 28 40 24 13 61 65 75 58 4 35 22 62 9 44 15 45 13 71 66 10 41 10 27 6 82 Regions Visited 25 Branch Regions 9 Pre-discovered Areas 2 | . . . . . . . . . . . . . . . . . . 1 . . 1 . . . . Known Exits Taken 7 | . . . 1 . . . 1 . 1 . 1 . 1 . 1 . . . . . 1 . . . . Unknown Exits Taken 13 | 1 1 1 . 1 1 1 . . . . . . . . . . 1 1 1 1 . 1 1 1 . Scrap Searched 6 | . . . . . . 1 . . . . . . . . . . . 3 2 . . . . . . Spaces Dug 95 | . . . . . . . 1 . . . 11 . . . 2 . . . . . . 1 75 . 5 Terrain Destroyed 632 | . . . . . . . 13 10 5 1 122 49 2 8 23 33 81 34 24 . 48 83 91 . 5 Melee 9 | . . . . . . . . . . . 4 . . . . . . . . . . . . . 5 Projectile 283 | . . . . . . . 13 . 1 1 28 . 2 . 23 1 3 29 24 . 48 19 91 . . AOE 340 | . . . . . . . . 10 4 . 90 49 . 8 . 32 78 5 . . . 64 . . . Terrain Rammed . | . . . . . . . . . . . . . . . . . . . . . . . . . . Walls Destroyed . | . . . . . . . . . . . . . . . . . . . . . . . . . . Machines Disabled . | . . . . . . . . . . . . . . . . . . . . . . . . . . Actions | -11 -10 -10 -9 -9 -9 -8 -8 -8 -7 -7 -7 -7 -6 -6 -6 -6 -5 -5 -5 -5 -4 -4 -3 -2 -2 --------- Run | Yrd Mat Min Mat Min Exi Min Mat Gar Fac Gar Fac Gar Fac Gar Fac Gar Fac Upp Upp War Pro Fac Res Res Tes Total 13710 | 56 163 185 393 78 254 228 1204 527 500 334 1232 979 577 424 811 355 543 581 581 39 387 830 1438 421 590 Wait 1768 | 19 7 16 77 1 . 17 281 40 208 46 164 52 243 63 185 19 25 7 28 . 9 101 154 3 3 Move 10688 | 30 124 151 268 69 251 211 857 444 267 247 968 804 312 283 559 275 484 511 533 39 293 604 1139 405 560 Hop 2 | . . . . . . . . . . . . . . . . . . . . . . . . . 2 Pick Up 118 | . 4 1 12 1 . . 21 1 4 1 11 6 4 3 5 6 3 4 1 . 4 10 8 6 2 Fast Attach 85 | 1 . . . . 1 . 2 1 2 1 9 2 4 3 6 . 3 3 1 . 6 24 16 . . Attach 83 | . . . 4 . . . 7 1 2 4 5 2 . 5 5 2 4 5 . . 13 14 6 1 3 Detach 14 | . . . . . . . . . . . 3 . 2 1 1 . 1 . 1 . 1 1 2 . 1 Swap 67 | . 3 1 1 1 . . 7 6 . 1 1 15 . 5 8 2 2 5 . . 1 4 4 . . Drop 129 | . 3 1 1 1 2 . 17 1 6 1 12 10 7 5 8 5 6 4 1 . 3 12 18 3 2 Fire 617 | 6 22 15 30 5 . . 12 24 11 17 53 62 5 21 33 23 15 42 16 . 57 60 88 . . Melee 20 | . . . . . . . . 1 . . 6 . . 3 . . . . . . . . . . 10 Ram 11 | . . . . . . . . . . . . . . . 1 . . . . . . . . 3 7 Kick . | . . . . . . . . . . . . . . . . . . . . . . . . . . Crush . | . . . . . . . . . . . . . . . . . . . . . . . . . . Escape Stasis 108 | . . . . . . . . 8 . 16 . 26 . 32 . 23 . . . . . . 3 . . Rewire . | . . . . . . . . . . . . . . . . . . . . . . . . . . Trap . | . . . . . . . . . . . . . . . . . . . . . . . . . . Miscellaneous . | . . . . . . . . . . . . . . . . . . . . . . . . . . Route ------- -11/Scrapyard -10/Materials -10/Mines -9/Materials (discovered 2 exits: *Min x2) -9/Mines (discovered 2 exits: *Exi / [*Zio]) -9/Exiles -8/Mines -8/Materials (discovered 4 exits: *Fac x3 / Gar) -8/Garrison (discovered 3 exits: *Fac x3) -7/Factory -7/Garrison -7/Factory -7/Garrison (discovered 2 exits: *Fac x2) -6/Factory -6/Garrison -6/Factory -6/Garrison -5/Factory -5/Upper Caves -5/Upper Caves -5/Warlord -4/Proximity Caves -4/Factory (discovered 2 exits: *Res / Arm) -3/Research -2/Research -2/Testing History --------- Turn | Location | Event 17 | -11/Scrapyard | Discovered new exit (range 2) 76 | -11/Scrapyard | Entered Materials 305 | -10/Materials | Discovered new exit (range 14) 314 | -10/Materials | Build established: Mutant 322 | -10/Materials | Entered Mines 375 | -10/Mines | Assisted by bots powering up and referring to "LRC-V3" 492 | -10/Mines | Discovered new exit (range 15) 515 | -10/Mines | Learned Materials interactive machine intel 587 | -10/Mines | Assembled infested the area 590 | -10/Mines | Entered Materials 590 | -9/Materials | Accompanied by 2 allies 590 | -9/Materials | Evolved 2 slots: Propulsion x2 591 | -9/Materials | Loaded intel: 17 interactive machine locations 917 | -9/Materials | Identified exit to Mines 1135 | -9/Materials | Entered Mines 1176 | -9/Mines | A Derelict revealed a hidden shortcut to a safe place 1242 | -9/Mines | Deemed a non-threat by the Exiles lab entrance 1242 | -9/Mines | Discovered new exit (range 5) 1248 | -9/Mines | Entered Exiles 1281 | -9/Exiles | Met 8R-AWN 1305 | -9/Exiles | Met EX-HEX 1343 | -9/Exiles | Met EX-BIN 1362 | -9/Exiles | Aligned with FarCom system 1363 | -9/Exiles | Given EX-Vault access code 1397 | -9/Exiles | Opened EX-Vault 1405 | -9/Exiles | Found AWS/Thermal 1436 | -9/Exiles | Warned to stay clear of 0b10 Research branches 1471 | -9/Exiles | Met EX-DEC 1571 | -9/Exiles | Discovered new exit (range 15) 1590 | -9/Exiles | Left Exiles lab with AWS/Thermal 1590 | -9/Exiles | Entered Mines 1859 | -8/Mines | Discovered new exit (range 11) 1882 | -8/Mines | Build established: Skirmisher 1892 | -8/Mines | Entered Materials 1892 | -8/Materials | Evolved 2 slots: Utility x2 2225 | -8/Materials | Met 7R-MNS 2321 | -8/Materials | Discovered new exit (range 5) 3075 | -8/Materials | Discovered new exit (range 16) 3389 | -8/Materials | Discovered new exit (range 10) 3467 | -8/Materials | Identified exit to Garrison 3495 | -8/Materials | Entered Garrison 3553 | -8/Garrison | Triggered checkpoint 3605 | -8/Garrison | Garrison Relay disabled 3717 | -8/Garrison | Triggered checkpoint 3719 | -8/Garrison | Triggered checkpoint 3815 | -8/Garrison | Build established: Mutant 4050 | -8/Garrison | Garrison Relay disabled 4093 | -8/Garrison | Discovered new exit (range 13) 4104 | -8/Garrison | Discovered new exit (range 13) 4104 | -8/Garrison | Discovered new exit (range 70) 4104 | -8/Garrison | Discovered new exit (range 80) 4284 | -8/Garrison | Installed Relay Interface Framework 4317 | -8/Garrison | Entered Factory 4317 | -7/Factory | Evolved 2 slots: Utility x1, Weapon x1 5086 | -7/Factory | Identified exit to Garrison 5086 | -7/Factory | Entered Garrison 5122 | -7/Garrison | Triggered checkpoint 5478 | -7/Garrison | Triggered checkpoint 5537 | -7/Garrison | Discovered new exit (range 8) 5634 | -7/Garrison | Expanded RIF knowledge: Threat Obfuscation 5700 | -7/Garrison | Entered Factory 5707 | -7/Factory | Build established: Skirmisher 6723 | -7/Factory | Build established: Mutant 6792 | -7/Factory | Found Powered Armor 6814 | -7/Factory | Found Powered Armor 7001 | -7/Factory | Repaired Arm. Treads 7362 | -7/Factory | Build established: Scavenger-Tank 7611 | -7/Factory | Identified exit to Garrison 7611 | -7/Factory | Entered Garrison 7751 | -7/Garrison | Triggered checkpoint 7821 | -7/Garrison | Triggered checkpoint 7852 | -7/Garrison | Garrison Relay disabled 8099 | -7/Garrison | Triggered checkpoint 8163 | -7/Garrison | Garrison Relay disabled 8184 | -7/Garrison | Garrison Relay disabled 8268 | -7/Garrison | Triggered checkpoint 8359 | -7/Garrison | Triggered checkpoint 8535 | -7/Garrison | Garrison Relay disabled 8603 | -7/Garrison | Discovered new exit (range 10) 8732 | -7/Garrison | Build established: Skirmisher 8957 | -7/Garrison | Discovered new exit (range 14) 9038 | -7/Garrison | Triggered checkpoint 9091 | -7/Garrison | Expanded RIF knowledge: Program Shield 9174 | -7/Garrison | Entered Factory 9174 | -6/Factory | Evolved 2 slots: Utility x2 9631 | -6/Factory | Build established: Tank 9981 | -6/Factory | Identified exit to Garrison 9981 | -6/Factory | Entered Garrison 10082 | -6/Garrison | Triggered checkpoint 10135 | -6/Garrison | Triggered checkpoint 10146 | -6/Garrison | Expanded RIF knowledge: Structural Interface 10363 | -6/Garrison | Triggered checkpoint 10402 | -6/Garrison | Build established: Commander-Tank 10429 | -6/Garrison | Triggered checkpoint 10486 | -6/Garrison | Expanded RIF knowledge: Signal Jamming 10499 | -6/Garrison | Garrison Relay disabled 10500 | -6/Garrison | Lost 5 allies 10553 | -6/Garrison | Discovered new exit (range 10) 10612 | -6/Garrison | Entered Factory 10612 | -6/Factory | Accompanied by 3 allies 10942 | -6/Factory | Lost 3 allies 11124 | -6/Factory | Build established: Tank 11173 | -6/Factory | AWS/Thermal suddenly broke down 11291 | -6/Factory | Lost 3 allies 11723 | -6/Factory | Found Prototype Processor 11723 | -6/Factory | Identified Exp. Targeting Computer 11858 | -6/Factory | Identified exit to Garrison 11858 | -6/Factory | Entered Garrison 11860 | -6/Garrison | Triggered checkpoint 11991 | -6/Garrison | Triggered checkpoint 12023 | -6/Garrison | Destroyed 7 combat bots 12130 | -6/Garrison | Expanded RIF knowledge: Patrol Navigation 12337 | -6/Garrison | Spotted B-75 Beast 12365 | -6/Garrison | Discovered new exit (range 10) 12386 | -6/Garrison | Expanded RIF knowledge: Threat Obfuscation 12431 | -6/Garrison | Entered Factory 12431 | -5/Factory | Evolved 2 slots: Power x1, Utility x1 13337 | -5/Factory | Discovered new exit (range 16) 13388 | -5/Factory | Entered Upper Caves 13520 | -5/Upper Caves | System corruption reached 10% 13570 | -5/Upper Caves | Destroyed 8 combat bots 13589 | -5/Upper Caves | Lost 4 parts (1n2u1w) 13613 | -5/Upper Caves | Build established: Scavenger-Tank 13708 | -5/Upper Caves | Attracted the attention of an 0b10 outpost 13735 | -5/Upper Caves | Learned location of 1 exit from Proximity Caves 13984 | -5/Upper Caves | Learned location of Armory (-4) 14386 | -5/Upper Caves | Spotted B-75 Beast 14412 | -5/Upper Caves | Destroyed B-75 Beast 14523 | -5/Upper Caves | Attracted the attention of an 0b10 checkpoint 14921 | -5/Upper Caves | Discovered new exit (range 11) 14945 | -5/Upper Caves | Entered another Upper Caves area 16096 | -5/Upper Caves | Learned Research garrison access intel 16096 | -5/Upper Caves | Learned Armory emergency access door positions 16096 | -5/Upper Caves | Learned Extension trap positions 16115 | -5/Upper Caves | A Commander dispatched an escort 16212 | -5/Upper Caves | Discovered new exit (range 14) 16319 | -5/Upper Caves | Entered Warlord 16319 | -5/Warlord | Accompanied by 2 allies 16320 | -5/Warlord | Commander's escort returned to base 16320 | -5/Warlord | Commander's escort returned to base 16380 | -5/Warlord | Discovered new exit (range 14) 16414 | -5/Warlord | Entered Proximity Caves 16415 | -4/Proximity Caves | Identified exit to Factory 16658 | -4/Proximity Caves | Lost 6 parts (1p3n2u) 16785 | -4/Proximity Caves | Attracted the attention of an 0b10 outpost 16841 | -4/Proximity Caves | Lost 4 parts (1p1n1u1w) 16858 | -4/Proximity Caves | Destroyed 7 combat bots 16893 | -4/Proximity Caves | Core integrity fell below 50% 16929 | -4/Proximity Caves | Lost 5 parts (1n3u1w) 17406 | -4/Proximity Caves | Entered Factory 17406 | -4/Factory | Evolved 2 slots: Utility x1, Weapon x1 17407 | -4/Factory | Identified exit to Armory 17768 | -4/Factory | Build established: Tank 18086 | -4/Factory | Build established: Skirmisher 18101 | -4/Factory | Discovered new exit (range 7) 18570 | -4/Factory | Core integrity fell below 50% 18589 | -4/Factory | Released all parts (6) 18598 | -4/Factory | Lost 17 parts (2p4n5u6w) 18953 | -4/Factory | Entered Research 18953 | -3/Research | Evolved 2 slots: Propulsion x2 18954 | -3/Research | Loaded intel: 4 garrison access locations 19227 | -3/Research | Build established: Scavenger-Tank 19234 | -3/Research | Lost 4 parts (1p2u1w) 19570 | -3/Research | Found Fusion Bomb Launcher 20292 | -3/Research | Crushed by falling debris 20304 | -3/Research | Crushed by falling debris 20314 | -3/Research | Crushed by falling debris 20352 | -3/Research | Crushed by falling debris 20352 | -3/Research | System corruption reached 10% 20362 | -3/Research | Crushed by falling debris 20372 | -3/Research | Crushed by falling debris 20388 | -3/Research | Crushed by falling debris 20403 | -3/Research | Lost 6 parts (2p2n2u) 20492 | -3/Research | Released all parts (10) 20502 | -3/Research | Core integrity fell below 50% 20524 | -3/Research | Discovered new exit (range 15) 20531 | -3/Research | Entered another Research area 20531 | -2/Research | Evolved 2 slots: Power x1, Propulsion x1 20540 | -2/Research | Discovered new exit (range 9) 20736 | -2/Research | Entered Testing 20737 | -2/Testing | Maximum security lockdown engaged 20764 | -2/Testing | Spotted PD-5U7I4G3BE2 20783 | -2/Testing | Build established: Mutant 20793 | -2/Testing | Spotted Striker 20805 | -2/Testing | Spotted Striker 20992 | -2/Testing | Core integrity fell below 50% 21027 | -2/Testing | Core integrity fell below 20% 21027 | -2/Testing | Spotted Alpha 7 21030 | -2/Testing | Stole the SGEMP Prototype 21034 | -2/Testing | Destroyed by P-80 Master with Gamma Rifle Last Messages --------------- 20991_ C-30 ARC bursts open, deploying its payload. 20991_ H-88 Terminator unfolds itself. 20991_ P-80 Master unfolds itself. 20991_ E-15 Imp unfolds itself. 20991_ Penetrated by Slug. 20993_ Slug penetrates Wall. 20994_ Cld. Q-thruster destroyed. 20994_ Identified Diametric Drive. 20995_ Dropped Faulty Diametric Drive. 20997_ P-80 Master resets W-44 Eye, system corruption cleaned. 21017_ E-15 Imp destroyed. 21025_ Slammed into Striker. 21025_ Knocked back. 21028_ Slug penetrates Machine. 21030_ Acquired SGEMP Prototype. 21031_ Machine disabled. 21031_ Penetrated by Slug. 21033_ Knocked back. Map ----- +----------------------------------------------------+ | ?????# # # #???# # | | ?????# ] ! # #####+######### # | | ?????# / # | | ?????# # / | | ?????# # ###### # | | ?????# # #????# # | | ?????# ! # #????# # | | ?????########### #????# """"" # | | ???????????????#+###### """"" # | | ?????????????### # """"" | | ?????????????#"" """ # """"" # | | ?????????????#"" """ # # | | ?????????????#"" """ # !""""" # | | ?????????????#T # %""""" # | | ?????????????#"" ! # =""""" # | | ?????????????#"" # """"" # | | ?????????????#"" !] # | | ?????????????### =] # | | ???????????????#! # ########### | | ???########????# ! + #?????????? | | ???#""""""#????# # #?????????? | | ???#"" """#????# # #?????????? | | ???#"" "####?######## ##?????#### | | ???#"" K ## #########! ####### ! | | ???#"" Ks p% p pp | | ???#" %%/@ | | ???#" 7## ######### ####### | | ???#""" ####???????##+###???####+# | | ???##### #?????????? ????# | | ???????####???????? " ??# """" | | ?????????????????# """ """ ## """" | | ?????????????????#???" """" ## """" | | ?????????????????????" "" ## """" | | ????????????????????? ## """" | | ????????????????????? ## | | ?????????????????????#####?##??##### | | | | | | | | | | | | | | | | | | | | | | | | | | | | | +----------------------------------------------------+ Best States ------------- Heat Dissipation 147 Energy Generation 37 Energy Capacity 525 Matter Stores 452 Matter Capacity 550 Sight Range 16 Terrain Scan Range 16 Terrain Scan Density 10 Base Temperature (-) 150 Armor Coverage 1225 Resistance: KI 30 Resistance: TH 25 Resistance: EM 15 Phase Shifting 10 Evasion (%) 61 Targeting Accuracy 12 Target Analysis 8 Recoil Reduction 4 Offensive Hacking 10 Relay Coupler Types 1 Relay Coupler Value 44 Item Schematics ----------------- Arm. Huge Wheel | -5/Factory | Scanalyzed Robot Schematics ------------------ None Fabricated ------------ Nothing Alien Tech Used ----------------- None Achievements -------------- Oh No You Don't! Streaker Challenges ------------ None Game ------ Seed WeightMultinovaShredder Manual? 0 Play Time 05:18:25 Cumulative 49.6 hours Start 2024.10.20 @ 01:56:42 End 2024.10.20 @ 05:23:43 Sessions 1 Manual Loads 0 Difficulty Rogue Special Mode None Game No. 49 Rogue 31 Adventurer 16 Explorer 2 Win Type - Total 1 Types 1/0/0/0/0/0/0/0/0 Lore% 13 Gallery% 40 Achievement% 34 Wizard Run 0 Options --------- Layout 2 ASCII 0 Keyboard 0 Movement Mouse Keybinds 1 Fullscreen 2 Font 24/Terminus Map View 50x44 Zoom Use 0% Tactical HUD 1 Map Filters NONE Filters NONE Steam X RUN: 9f6c25fd-5271-4563-b2f8-72d41ae40d2c